Cogmind - Beta 12 @@@ ROGUE MODE // 2024.01.10 @ 19:21:13 Player: ktur Result: Destroyed by S-27 Virus with Autogun Performance ------------- Evolutions (3) 1500 Regions Visited (16) 3200 Robots Destroyed (197) 985 Value Destroyed (8708) 8708 Prototype IDs (50) 1000 Alien Tech Used (0) 0 Bonus (2099) 2099 TOTAL SCORE: 17492 Bonus ------- High Alert Combat Kills 894 Entered Garrisons 1000 Aligned with FarCom 300 Friendly Fire -95 Cogmind --------- Core Integrity 0/700 Matter 155/300 Energy 100/100 System Corruption 0% Temperature Cool (0) Movement Core (100) Ox1 Location -7/Garrison Parts ------- > --- POWER (1) -------- (None) > --- PROPULSION (4) --- (None) > --- UTILITY (6) ------ Hacking Suite Authchip [Armor] > --- WEAPON (2) ------- Mini Assault Cannon > --- INVENTORY (5) ---- Advanced System Shield Authchip [Processor] Advanced Trap Extractor (4/8 EM Surge) Trap Reconfigurator Peak State ------------ > --- POWER ------------ Light Deuterium Engine > --- PROPULSION ------- Improved Flight Unit Improved Flight Unit Improved VTOL Module Cooled VTOL Module > --- UTILITY ---------- Medium Storage Unit Improved Utility Shielding Hacking Suite Hacking Suite Hacking Suite Hacking Suite > --- WEAPON ----------- Rocket Array Lance > --- INVENTORY -------- Gravity Neutralizer Transport Network Coupler Advanced ECM Suite Advanced System Shield Authchip [Processor] Authchip [Armor] Advanced Trap Extractor Trap Reconfigurator Mini Assault Cannon Precision Grenade Launcher [Rating: 50] Favorites ----------- Power Heavy Ion Engine Engine Heavy Ion Engine Power Core Nuclear Core Propulsion Light Treads Treads Light Treads Wheel Armored Huge Wheel Flight Unit Improved Flight Unit Utility Hacking Suite Device Seismic Detector Storage High-capacity Storage Unit Processor Advanced Targeting Computer Hackware Hacking Suite Protection Light Armor Plating Weapon Improved Assault Rifle Energy Gun Small Laser Energy Cannon Light EM Pulse Cannon Ballistic Gun Improved Assault Rifle Ballistic Cannon Advanced Assault Cannon Launcher Mini Grenade Launcher Special Weapon Mining Laser Impact Weapon Maul Slashing Weapon Katana Piercing Weapon Lance Special Melee Weapon Datajack Build | -11 -10 -10 -9 -9 -9 -8 -8 -8 -8 -8 -7 -7 -7 -7 -7 -7 ------- Run | Jun Mat Min Mat Min Exi Min Mat Gar Mat Gar Fac Gar Fac Gar Fac Gar Slots Evolved 6 | . . . 2 . . . 2 . . . 2 . . . . . Power . | . . . . . . . . . . . . . . . . . Propulsion 2 | . . . 1 . . . 1 . . . . . . . . . Utility 4 | . . . 1 . . . 1 . . . 2 . . . . . Weapon . | . . . . . . . . . . . . . . . . . Parts Attached 239 | 7 25 3 53 4 2 7 11 19 17 20 15 6 17 12 8 13 Power 13 | 1 1 . 4 . . . 1 . . 1 2 . 3 . . . Engine 10 | 1 1 . 3 . . . 1 . . 1 . . 3 . . . Core 3 | . . . 1 . . . . . . . 2 . . . . . Reactor . | . . . . . . . . . . . . . . . . . Propulsion 45 | 2 1 1 16 1 . 3 2 1 6 2 4 . 5 . 1 . Treads 33 | 2 1 1 15 1 . 3 1 1 6 2 . . . . . . Leg . | . . . . . . . . . . . . . . . . . Wheel 1 | . . . . . . . 1 . . . . . . . . . Hover . | . . . . . . . . . . . . . . . . . Flight 11 | . . . 1 . . . . . . . 4 . 5 . 1 . Utility 79 | 2 5 2 11 3 . . 3 4 5 11 7 . 6 8 4 8 Device 36 | 1 1 2 4 3 . . 2 2 1 8 . . 2 4 2 4 Storage 8 | 1 4 . 2 . . . . . . . . . 1 . . . Processor 5 | . . . . . . . . . 1 2 1 . . . . 1 Hackware 5 | . . . . . . . . . . . 4 . . . . 1 Protection 25 | . . . 5 . . . 1 2 3 1 2 . 3 4 2 2 Artifact . | . . . . . . . . . . . . . . . . . Weapon 102 | 2 18 . 22 . 2 4 5 14 6 6 2 6 3 4 3 5 Energy Gun 2 | 1 . . 1 . . . . . . . . . . . . . Energy Cannon 22 | . 6 . 2 . . . 4 2 5 3 . . . . . . Ballistic Gun 31 | 1 10 . 14 . . 3 . 3 . . . . . . . . Ballistic Cannon 6 | . . . . . . . 1 2 . . . . . . 1 2 Launcher 27 | . . . 2 . . 1 . 6 1 2 . 6 1 4 1 3 Special Weapon 2 | . 2 . . . . . . . . . . . . . . . Impact Weapon 5 | . . . 3 . 1 . . 1 . . . . . . . . Slashing Weapon 1 | . . . . . . . . . . . . . 1 . . . Piercing Weapon 2 | . . . . . . . . . . 1 1 . . . . . Special Melee Weapon 4 | . . . . . 1 . . . . . 1 . 1 . 1 . Unidentified Prototypes 8 | . . . 4 . . . . . 1 . . . 1 . 2 . Corrupted Parts 2 | . . 2 . . . . . . . . . . . . . . System Corruption 9 | . . 9 . . . . . . . . . . . . . . Parts Lost 25 | . . . . . . 5 . 4 1 . . 2 1 . . 12 Power 1 | . . . . . . . . . . . . . . . . 1 Propulsion 10 | . . . . . . 3 . 2 . . . . 1 . . 4 Utility 9 | . . . . . . . . 2 1 . . 1 . . . 5 Weapon 5 | . . . . . . 2 . . . . . 1 . . . 2 Highest Loss Streak 7 | . . . . . . 5 . 1 1 . . 1 1 . . 7 To Critical Strikes . | . . . . . . . . . . . . . . . . . Average Slot Usage (%) 94 | . 100 100 99 100 100 95 77 82 88 99 92 95 90 92 92 72 Engine 8 | . 14 14 7 11 11 11 9 9 9 8 . . 6 7 7 2 Core 1 | . . . 3 . . . . . . . 6 7 . . . . Treads 21 | . 28 28 33 33 33 30 22 10 21 35 . . . . . . Wheel 1 | . . . . . . . . 9 4 . . . . . . . Flight 6 | . . . . . . . . . . . 29 30 29 30 30 20 Device 9 | . 10 14 9 11 11 11 9 18 9 16 . . . . . 1 Storage 10 | . 17 14 11 11 11 11 9 9 9 9 . . 6 7 7 5 Hackware 6 | . . . . . . . . . . . 28 30 30 30 30 30 Protection 8 | . . . 11 11 11 11 13 8 8 9 14 15 6 6 6 3 Energy Cannon 4 | . 4 28 1 . . . 4 6 11 16 . . . . . . Ballistic Gun 9 | . 21 . 20 22 . 20 8 3 1 . . . . . . . Piercing Weapon 1 | . . . . . . . . . . 1 6 7 7 7 7 2 Naked Turns . | . . . . . . . . . . . . . . . . . Heaviest Build 70 | 14 35 36 61 62 59 61 70 66 62 68 18 14 20 26 20 20 Greatest Support 82 | 40 40 42 62 62 62 62 60 40 82 82 20 20 22 20 20 22 Greatest Overweight (x) 19 | . . . . . . 19 2 2 2 1 . . 1 1 . 4 Average Overweight (x) . | . . . . . . . 1 1 1 . . . . . . . Largest Inventory Capacity 20 | 8 15 15 20 20 20 20 20 20 20 20 20 5 10 10 10 10 Average Capacity 15 | 6 13 15 16 20 20 20 20 20 20 20 5 5 9 10 10 9 Most Carried 20 | 5 15 15 20 20 20 20 20 20 20 20 20 5 10 10 10 10 Average Carried 15 | 3 12 14 16 20 20 19 19 19 19 19 5 4 8 9 9 8 Final Capacity 20 | 8 15 15 20 20 20 20 20 20 20 20 5 5 10 10 10 5 Final Carried 20 | 5 15 15 20 20 20 20 20 20 20 20 5 5 10 10 10 4 Class Distribution -------------------- 58% | Mutant 21% | Hacker-Sprinter 19% | Scavenger-Mutant Dominant Class ---------------- Mutant | -10/Materials Mutant | -10/Mines Mutant | -9/Materials Mutant | -9/Mines Mutant | -9/Exiles Mutant | -8/Mines Scavenger-Mutant | -8/Materials Mutant | -8/Garrison Mutant | -8/Materials Scavenger-Mutant | -8/Garrison Hacker-Sprinter | -7/Factory Hacker-Sprinter | -7/Garrison Hacker-Sprinter | -7/Factory Hacker-Sprinter | -7/Garrison Hacker-Sprinter | -7/Factory Hacker-Sprinter | -7/Garrison Resources | -11 -10 -10 -9 -9 -9 -8 -8 -8 -8 -8 -7 -7 -7 -7 -7 -7 ----------- Run | Jun Mat Min Mat Min Exi Min Mat Gar Mat Gar Fac Gar Fac Gar Fac Gar Matter Collected 4785 | 299 557 102 1255 70 . 205 47 609 436 275 174 80 273 37 332 34 Remotely . | . . . . . . . . . . . . . . . . . Salvage Created 6407 | 106 784 79 1631 51 . 191 110 736 738 368 96 144 409 373 401 190 Parts 396 | 11 59 3 108 3 . 13 4 30 42 23 4 8 33 13 28 14 Haulers Intercepted 19 | . 2 . 6 . . . . . 2 . 2 . 6 . 1 . Recyclers Shooed 6 | . 3 . 1 . . . . . 2 . . . . . . . Parts Field Recycled . | . . . . . . . . . . . . . . . . . Retrieved Matter . | . . . . . . . . . . . . . . . . . Parts Self-Destructed . | . . . . . . . . . . . . . . . . . Prevented . | . . . . . . . . . . . . . . . . . Kills | -11 -10 -10 -9 -9 -9 -8 -8 -8 -8 -8 -7 -7 -7 -7 -7 -7 ------- Run | Jun Mat Min Mat Min Exi Min Mat Gar Mat Gar Fac Gar Fac Gar Fac Gar Combat Hostiles Destroyed 139 | . 15 3 36 1 . 7 2 20 14 14 . 5 . 12 . 10 Melee 3 | . . . . . . . . . . 1 . 2 . . . . Guns 45 | . 11 . 25 1 . 5 1 2 . . . . . . . . Cannons 36 | . 4 2 2 . . . . 9 12 7 . . . . . . AOE 54 | . . 1 9 . . 2 . 9 2 6 . 3 . 12 . 10 Classes Destroyed 16 | 2 6 . 4 1 . . 1 . . 2 . . . . . . Worker 8 | . . . 4 . . . . . . . . . 1 . 3 . Builder 6 | . 1 . 1 1 . . . . 1 . . . 2 . . . Tunneler 6 | 2 . . . . . 1 . . . . . . 2 . 1 . Hauler 19 | . 2 . 6 . . . . . 2 . 2 . 6 . 1 . Recycler 9 | 1 3 . 1 1 . . . . . . . . . . 3 . Operator 4 | . 1 . 1 . . . . . . . . . 1 . 1 . Watcher 6 | . 2 . 2 . . . . . 1 . . . . . 1 . Swarmer 51 | . 9 . 14 . . 3 . . . 4 . 3 . 8 . 10 Cutter 1 | . . . . . . . . . . 1 . . . . . . Grunt 59 | . 6 3 12 . . 3 . 13 11 6 . 1 . 4 . . Brawler 2 | . . . 1 . . 1 . . . . . . . . . . Protector 1 | . . . 1 . . . . . . . . . . . . . Sentry 21 | . . . 8 . . . 1 6 3 2 . 1 . . . . Demolisher 1 | . . . . 1 . . . . . . . . . . . . Specialist 1 | . . . . . . . . . . 1 . . . . . . Hunter 2 | . . . . . . . 1 1 . . . . . . . . Best Kill Streak 7 | 3 3 2 7 1 . 3 1 7 4 4 1 3 5 4 2 6 Combat Bots Only 7 | . 3 2 7 1 . 3 1 7 4 4 . 3 . 4 . 6 Max Kills in Single Turn 5 | 1 2 1 5 1 . 2 1 3 2 2 1 2 1 2 1 4 Gunslinging 1 | . . . . . . 1 . . . . . . . . . . Exploded 5 | . . 1 5 . . 2 . 3 2 2 . 2 . 2 . 4 Melee 1 | . . . . . . . . . . 1 . 1 . . . . Uniques/NPCs Destroyed . | . . . . . . . . . . . . . . . . . Combat | -11 -10 -10 -9 -9 -9 -8 -8 -8 -8 -8 -7 -7 -7 -7 -7 -7 -------- Run | Jun Mat Min Mat Min Exi Min Mat Gar Mat Gar Fac Gar Fac Gar Fac Gar Damage Taken 6747 | . 162 31 1363 39 . 813 260 974 761 657 18 211 103 158 . 1197 Core 1272 | . 36 9 76 13 . 103 40 134 78 78 18 39 23 20 . 605 Absorbed by Shields 368 | . . . 163 . . . . 28 . 124 . 38 . . . 15 Redirected to Shielding 101 | . . . . . . . . . . . . . . 21 . 80 Regen/Repaired (Parts) 278 | . . . 202 . . . . . . . . . 76 . . . Core Remaining (%) 68 | 100 . 82 . . . 52 . . . 40 . . . . . . Volleys Fired 419 | 11 47 4 125 2 . 19 18 62 65 36 . 7 . 13 . 10 Largest 2 | 2 2 2 2 2 . 2 2 2 2 2 . 1 . 1 . 1 Hottest 136 | 60 120 112 112 46 . 46 98 123 136 136 . 39 . 36 . 48 Shots Fired 722 | 22 94 8 247 4 . 33 20 94 108 62 . 7 . 13 . 10 Gun 401 | 22 79 . 228 4 . 30 11 17 10 . . . . . . . Cannon 254 | . 10 8 16 . . . 9 58 97 53 . . . . . 3 Launcher 62 | . . . 3 . . 3 . 19 1 9 . 7 . 13 . 7 Special 5 | . 5 . . . . . . . . . . . . . . . Kinetic 447 | 11 73 . 228 4 . 30 11 43 44 . . . . . . 3 Thermal 161 | 11 11 . . . . . 4 19 63 53 . . . . . . Explosive 62 | . . . 3 . . 3 . 19 1 9 . 7 . 13 . 7 Electromagnetic 52 | . 10 8 16 . . . 5 13 . . . . . . . . Robot Hit Streak 23 | 6 14 16 23 1 . 10 8 13 14 10 . . . . . 2 Robot Miss Streak 4 | 3 3 . 3 1 . 4 1 2 3 2 . . . 1 . 3 Penetration Max . | . . . . . . . . . . . . . . . . . Secondary Targets 7 | . 1 . 3 . . 3 . . . . . . . . . . Max Gunslinging Chain 1 | . 1 . 1 . . 1 . . . . . . . . . . Shots Hit Robots 481 | 13 53 2 168 2 4 26 14 50 72 28 5 2 17 11 10 4 Core Hits 285 | 4 28 3 67 2 . 17 3 47 28 20 2 6 10 27 8 13 Critical Kills . | . . . . . . . . . . . . . . . . . Critical Parts Destroyed . | . . . . . . . . . . . . . . . . . Critical Strikes 7 | . . . . . . . . 3 1 . . 1 . . 2 . Blast 4 | . . . . . . . . 3 1 . . . . . . . Impale 3 | . . . . . . . . . . . . 1 . . 2 . Melee Attacks 189 | . . . 2 . 5 . . 10 . 3 20 22 70 30 23 4 Impact 12 | . . . 2 . . . . 10 . . . . . . . . Slashing . | . . . . . . . . . . . . . . . . . Piercing 172 | . . . . . . . . . . 3 20 22 70 30 23 4 Sneak Attacks 28 | . . . . . 4 . . . . . 2 1 11 . 10 . Combat Hostiles 1 | . . . . . . . . . . . . 1 . . . . Follow-up Attacks . | . . . . . . . . . . . . . . . . . Damage Inflicted 17394 | 162 850 249 3517 81 . 741 240 2219 1800 1431 319 428 1231 2257 890 979 Guns 4111 | 162 663 . 2493 29 . 338 122 188 116 . . . . . . . Cannons 3354 | . 148 48 176 . . . 118 808 1517 539 . . . . . . Explosions 6116 | . . 199 693 . . 378 . 1223 167 869 . 280 . 1534 . 773 Melee 3517 | . . . . . . . . . . . 319 148 1231 723 890 206 Ramming 296 | . 39 2 155 52 . 25 . . . 23 . . . . . . Kinetic 4965 | 97 599 . 2493 29 . 338 122 555 732 . . . . . . . Thermal 2068 | 65 64 199 . . . . . 300 901 539 . . . . . . Explosive 5917 | . . . 693 . . 378 . 1223 167 869 . 280 . 1534 . 773 Electromagnetic 631 | . 148 48 176 . . . 118 141 . . . . . . . . Impact . | . . . . . . . . . . . . . . . . . Slashing . | . . . . . . . . . . . . . . . . . Piercing 3517 | . . . . . . . . . . . 319 148 1231 723 890 206 Highest Corruption 9 | . . 9 1 1 1 1 . 1 1 1 . . . . 3 . Average Corruption 1 | . . 7 1 1 1 1 . 1 1 1 . . . . 1 . Corruption Purged 4 | . . . . . . . . . . 1 . . . . 3 . Corruption Blocked . | . . . . . . . . . . . . . . . . . Effects 35 | . . . 13 4 3 4 . 4 4 2 . . . . 1 . Message Errors 11 | . . . 4 . . 1 . 3 2 . . . . . 1 . Matter Fused 8 | . . . 3 2 2 1 . . . . . . . . . . Heat Flow Errors 4 | . . . 2 . 1 . . . 1 . . . . . . . Energy Discharges 1 | . . . . . . . . 1 . . . . . . . . Parts Fused 1 | . . . . 1 . . . . . . . . . . . . Data Loss (minor) 4 | . . . 1 . . 1 . . 1 1 . . . . . . Data Loss (major) 6 | . . . 3 1 . 1 . . . 1 . . . . . . Overload Shots . | . . . . . . . . . . . . . . . . . Overflow Damage 637 | . . 5 11 . . 24 . 3 42 40 . . 170 83 159 100 Projectiles 62 | . . . . . . . . 2 42 18 . . . . . . Explosions 175 | . . 5 11 . . 24 . 1 . 22 . . . 83 . 29 Melee 400 | . . . . . . . . . . . . . 170 . 159 71 Knockbacks 10 | . 1 . 1 . . . . 1 7 . . . . . . . Impact 2 | . 1 . 1 . . . . . . . . . . . . . Kinetic 8 | . . . . . . . . 1 7 . . . . . . . Secondary . | . . . . . . . . . . . . . . . . . Self-Inflicted Damage 368 | . . . 31 . . 60 . 14 . 71 . 113 . 23 . 56 Shots 13 | . . . 1 . . 3 . 2 . 2 . 3 . 1 . 1 Rammed 30 | . 8 1 14 1 . 1 . . . 5 . . . . . . Targets Rammed 37 | . 9 1 16 3 . 2 . . . 6 . . . . . . Kicked . | . . . . . . . . . . . . . . . . . Crushed 7 | . 1 . 2 2 . 1 . . . 1 . . . . . . Highest Temperature 225 | . 108 108 225 . 94 12 60 199 198 206 . 22 . 3 . 40 Average Temperature 72 | . 38 56 34 . 57 9 34 92 111 108 . 9 . 3 . 20 Received Heat Transfer 2376 | . 30 12 402 . . 468 18 342 459 306 9 90 6 36 . 198 Siege Activations . | . . . . . . . . . . . . . . . . . Robots Corrupted 2 | . . . 1 . . . 1 . . . . . . . . . Combat Hostiles 1 | . . . . . . . 1 . . . . . . . . . Parts Fried 2 | . . . 1 . . . 1 . . . . . . . . . Impact Corruptions . | . . . . . . . . . . . . . . . . . Robots Melted . | . . . . . . . . . . . . . . . . . Combat Hostiles . | . . . . . . . . . . . . . . . . . Parts Melted 5 | . 1 . . . . . . . 2 2 . . . . . . Heat Transferred 3634 | 150 150 300 . . . . . 444 1628 962 . . . . . . Parts Sabotaged . | . . . . . . . . . . . . . . . . . Parts Stolen . | . . . . . . . . . . . . . . . . . Parts Stripped . | . . . . . . . . . . . . . . . . . Power Chain Reactions . | . . . . . . . . . . . . . . . . . Missiles Intercepted . | . . . . . . . . . . . . . . . . . Alert | -11 -10 -10 -9 -9 -9 -8 -8 -8 -8 -8 -7 -7 -7 -7 -7 -7 ------- Run | Jun Mat Min Mat Min Exi Min Mat Gar Mat Gar Fac Gar Fac Gar Fac Gar Peak Influence 1204 | 15 247 232 634 252 . 152 73 1011 835 1204 739 916 534 1149 714 1072 Initial 632 | . 9 72 12 247 . . . 3 492 445 632 377 480 215 602 213 Average 355 | 5 129 78 283 122 . 64 20 484 662 803 652 637 352 559 451 508 Maximum Alert Level 4 | . 1 1 2 1 . . . 3 3 4 3 3 2 4 3 3 Low Security (%) 36 | 100 87 90 29 53 . 100 100 35 . . . . 1 . . . Level 1 25 | . 12 9 56 46 . . . 7 . . . 2 59 19 45 55 Level 2 24 | . . . 13 . . . . 26 67 39 84 59 39 49 44 8 Level 3 12 | . . . . . . . . 30 32 48 15 37 . 28 10 36 Level 4 . | . . . . . . . . . . 12 . . . 3 . . Level 5 . | . . . . . . . . . . . . . . . . . High Security . | . . . . . . . . . . . . . . . . . Max Security . | . . . . . . . . . . . . . . . . . Squads Dispatched 28 | . 4 . 7 . . 1 1 . 4 . 2 . 8 . 1 . Investigation 15 | . 3 . 3 . . . . . 2 . 2 . 4 . 1 . Extermination 1 | . . . . . . . . . . . . . 1 . . . Reinforcement 10 | . 1 . 2 . . 1 1 . 2 . . . 3 . . . Assault 2 | . . . 2 . . . . . . . . . . . . . Garrison . | . . . . . . . . . . . . . . . . . Intercept . | . . . . . . . . . . . . . . . . . Searches Triggered . | . . . . . . . . . . . . . . . . . Construction Impeded 1 | . . . . . . 1 . . . . . . . . . . Haulers Reinforced 2 | . . . . . . . . . . . . . 2 . . . Active Scanning Responses . | . . . . . . . . . . . . . . . . . Cargo Convoy Interrupts . | . . . . . . . . . . . . . . . . . Stealth | -11 -10 -10 -9 -9 -9 -8 -8 -8 -8 -8 -7 -7 -7 -7 -7 -7 --------- Run | Jun Mat Min Mat Min Exi Min Mat Gar Mat Gar Fac Gar Fac Gar Fac Gar Distress Signals 8 | . . . 3 1 . . 1 . 2 . . . 1 . . . Communications Jammed . | . . . . . . . . . . . . . . . . . Distress Signals . | . . . . . . . . . . . . . . . . . Times Spotted 272 | . 24 3 60 1 . 9 5 19 21 19 7 10 11 10 7 66 Peak Tracking Total 24 | . 3 2 7 1 . 4 3 7 5 6 3 7 3 7 2 24 Tactical Retreats 36 | . 3 . 4 . . . . 1 3 6 2 4 3 . 2 8 Traps | -11 -10 -10 -9 -9 -9 -8 -8 -8 -8 -8 -7 -7 -7 -7 -7 -7 ------- Run | Jun Mat Min Mat Min Exi Min Mat Gar Mat Gar Fac Gar Fac Gar Fac Gar Traps Triggered 21 | . 2 . 2 . . . . 7 . 1 1 5 2 . . 1 Indirectly . | . . . . . . . . . . . . . . . . . Trap Hack Attempts . | . . . . . . . . . . . . . . . . . Triggered . | . . . . . . . . . . . . . . . . . Disarmed . | . . . . . . . . . . . . . . . . . Reprogrammed . | . . . . . . . . . . . . . . . . . Reused 9 | . . . . . . . . . . . . . . 1 2 6 Traps Reconfigurated 30 | . . . . . . . . . . . . . . 13 5 12 Traps Extracted . | . . . . . . . . . . . . . . . . . Installed . | . . . . . . . . . . . . . . . . . Triggered 10 | . . . . . . . . . . . . . . 1 3 6 Most Traps Carried 6 | . . . . 4 4 4 4 6 4 4 4 . 4 4 4 4 Machines | -11 -10 -10 -9 -9 -9 -8 -8 -8 -8 -8 -7 -7 -7 -7 -7 -7 ---------- Run | Jun Mat Min Mat Min Exi Min Mat Gar Mat Gar Fac Gar Fac Gar Fac Gar Machines Disabled 37 | . 1 4 1 . . 1 . 13 1 5 . 2 . 8 . 1 Max in Single Turn 3 | . 1 3 1 . . 1 . 1 1 1 . 1 . 1 . 1 Garrison Access 2 | . . . . . . . . . . . 1 . 1 . . . Garrison Relay 16 | . . . . . . . . 5 . 4 . 2 . 5 . . Phase Generator 1 | . . . . . . . . . . . . . . 1 . . Machines Repaired 1 | . . . . . . . . . . . . . . 1 . . Machines Sabotaged . | . . . . . . . . . . . . . . . . . Overloaded Fab Kills . | . . . . . . . . . . . . . . . . . Hacking | -11 -10 -10 -9 -9 -9 -8 -8 -8 -8 -8 -7 -7 -7 -7 -7 -7 --------- Run | Jun Mat Min Mat Min Exi Min Mat Gar Mat Gar Fac Gar Fac Gar Fac Gar Machines Accessed 85 | . 8 1 16 . 2 . 5 3 6 4 11 1 16 2 9 1 Terminals 56 | . 6 . 11 . . . 4 3 4 4 7 1 7 2 6 1 Fabricators 3 | . . . . . . . . . . . . . 3 . . . Repair Stations 3 | . . . 2 . . . . . . . . . 1 . . . Recycling Units 9 | . 2 . 2 . . . . . . . 1 . 2 . 2 . Scanalyzers 4 | . . . 1 . . . . . 1 . 1 . 1 . . . Garrison Access 7 | . . . . . . . 1 . 1 . 2 . 2 . 1 . Total Hacks 187 | . 18 1 36 . 2 . 11 4 13 5 22 2 38 6 26 3 Successful 107 | . 7 1 17 . 2 . 6 2 4 2 15 . 27 4 18 2 Failed 80 | . 11 . 19 . . . 5 2 9 3 7 2 11 2 8 1 Catastrophic 8 | . 1 . 1 . . . 1 . 2 2 . . . . . 1 Database Lockouts . | . . . . . . . . . . . . . . . . . Manual 91 | . 17 . 18 . 1 . 7 . 2 . 12 2 12 4 14 2 Terminals 131 | . 16 . 26 . . . 9 4 10 5 15 2 18 6 17 3 Fabricators 6 | . . . . . . . . . . . . . 6 . . . Repair Stations 8 | . . . 4 . . . . . . . . . 4 . . . Recycling Units 18 | . 2 . 4 . . . . . . . 2 . 4 . 6 . Scanalyzers 11 | . . . 2 . . . . . 2 . 3 . 4 . . . Garrison Access 10 | . . . . . . . 2 . 1 . 2 . 2 . 3 . Terminal Hacks 44 | . 3 1 6 . 2 . 2 2 1 2 5 . 5 2 11 2 Record 1 | . . . . . 1 . . . . . . . . . . . Part Schematic 2 | . . . . . . . . . . . . . 1 . 1 . Robot Schematic 1 | . 1 . . . . . . . . . . . . . . . Robot Analysis 3 | . 2 . . . . . . . . . 1 . . . . . Prototype ID Bank 2 | . . . 1 . . . 1 . . . . . . . . . Open Door 2 | . . 1 . . . . . . . 1 . . . . . . Branch Access Points 1 | . . . . . . . . . . . . . . . 1 . Emergency Access Points 2 | . . . . . . . . 1 . . . . . . . 1 Machine Index 1 | . . . . . . . . . . . . . 1 . . . Terminal Index 2 | . . . . . . . . . . . 1 . . . 1 . Fabricator Index 1 | . . . . . . . . . . . . . . . 1 . Repair Station Index 1 | . . . . . . . . . . . . . . . 1 . Garrison Index 2 | . . . . . . . . . . . 1 . . . 1 . Unreport Threat 4 | . . . 1 . . . . . . . . . 1 . 2 . Locate Traps 3 | . . . 1 . . . . . . . 1 . 1 . . . Patrol Status 1 | . . . . . . . . . . . . . . . 1 . Transport Status 3 | . . . 2 . . . 1 . . . . . . . . . Recall Extermination 1 | . . . . . . . . . . . . . 1 . . . Hauler Manifests 3 | . . . 1 . . . . . . . . . . . 2 . Zone Layout 2 | . . . . . . . . . 1 . 1 . . . . . Garrison Registry 3 | . . . . . . . . . . 1 . . . 1 . 1 Patrol Navigation 2 | . . . . . . . . 1 . . . . . 1 . . EX-Prototype ID Bank 1 | . . . . . 1 . . . . . . . . . . . Fabricator Hacks 4 | . . . . . . . . . . . . . 4 . . . Network Status 1 | . . . . . . . . . . . . . 1 . . . Load Schematic 2 | . . . . . . . . . . . . . 2 . . . Build 1 | . . . . . . . . . . . . . 1 . . . Repair Station Hacks 8 | . . . 4 . . . . . . . . . 4 . . . Scan Component 4 | . . . 2 . . . . . . . . . 2 . . . Repair 4 | . . . 2 . . . . . . . . . 2 . . . Recycling Unit Hacks 1 | . . . . . . . . . . . . . 1 . . . Retrieve Components 1 | . . . . . . . . . . . . . 1 . . . Scanalyzer 10 | . . . 2 . . . . . 2 . 2 . 4 . . . Insert Component 4 | . . . 1 . . . . . 1 . 1 . 1 . . . Analyze 6 | . . . 1 . . . . . 1 . 1 . 3 . . . Garrison Access Hacks 7 | . . . . . . . 1 . 1 . 2 . 2 . 1 . Unlock Access 5 | . . . . . . . 1 . 1 . 1 . 1 . 1 . Seal Access 2 | . . . . . . . . . . . 1 . 1 . . . Unauthorized Hacks 33 | . 4 . 5 . . . 3 . . . 6 . 7 2 6 . Terminals 21 | . 2 . 3 . . . 3 . . . 4 . 5 2 2 . Assimilate 6 | . . . . . . . . . . . 1 . 4 . 1 . Botnet 7 | . 1 . 1 . . . 2 . . . 2 . . . 1 . Disrupt 1 | . . . . . . . 1 . . . . . . . . . Operators 5 | . 1 . 2 . . . . . . . 1 . 1 . . . Sabotage 2 | . . . . . . . . . . . . . . 2 . . Fabricators 2 | . . . . . . . . . . . . . 2 . . . Recompile 2 | . . . . . . . . . . . . . 2 . . . Repair Stations . | . . . . . . . . . . . . . . . . . Recycling Units 10 | . 2 . 2 . . . . . . . 2 . . . 4 . Monitor 1 | . . . . . . . . . . . . . . . 1 . Reject 3 | . . . . . . . . . . . 1 . . . 2 . Recyclers 2 | . . . . . . . . . . . 1 . . . 1 . Tunnel 4 | . 2 . 2 . . . . . . . . . . . . . Scanalyzers . | . . . . . . . . . . . . . . . . . Garrison Access . | . . . . . . . . . . . . . . . . . Data Cores Recovered . | . . . . . . . . . . . . . . . . . Used . | . . . . . . . . . . . . . . . . . Hacking Detections 64 | . 6 . 14 . . . 4 2 5 2 8 1 11 2 8 1 Full Trace Events 8 | . . . . . . . . . 2 . 2 1 2 . 1 . Feedback Events . | . . . . . . . . . . . . . . . . . Feedback Blocked 1 | . . . . . . . . . . . . . 1 . . . Robot Schematics Acquired 1 | . 1 . . . . . . . . . . . . . . . Robots Built . | . . . . . . . . . . . . . . . . . Authchips . | . . . . . . . . . . . . . . . . . Time . | . . . . . . . . . . . . . . . . . Total Robot Build Rating . | . . . . . . . . . . . . . . . . . Part Schematics Acquired 6 | . . . 1 . . . . . 1 . 1 . 2 . 1 . Parts Built 1 | . . . . . . . . . . . . . 1 . . . Authchips . | . . . . . . . . . . . . . . . . . Time 67 | . . . . . . . . . . . . . 67 . . . Total Part Build Rating 4 | . . . . . . . . . . . . . 4 . . . Parts Repaired 4 | . . . 2 . . . . . . . . . 2 . . . Time 134 | . . . 58 . . . . . . . . . 76 . . . Parts Recycled . | . . . . . . . . . . . . . . . . . Recycled Matter . | . . . . . . . . . . . . . . . . . Retrieved Matter . | . . . . . . . . . . . . . . . . . Retrieved Components . | . . . . . . . . . . . . . . . . . Parts Scanalyzed 4 | . . . 1 . . . . . 1 . 1 . 1 . . . Part Schematics Acquired 4 | . . . 1 . . . . . 1 . 1 . 1 . . . Parts Damaged 1 | . . . . . . . . . . . 1 . . . . . Bothacking | -11 -10 -10 -9 -9 -9 -8 -8 -8 -8 -8 -7 -7 -7 -7 -7 -7 ------------ Run | Jun Mat Min Mat Min Exi Min Mat Gar Mat Gar Fac Gar Fac Gar Fac Gar Used RIF Installer . | . . . . . . . . . . . . . . . . . Robots Hacked 4 | . . . . . 4 . . . . . . . . . . . Non-combat 3 | . . . . . 3 . . . . . . . . . . . Combat 1 | . . . . . 1 . . . . . . . . . . . Robot Hacks Applied 4 | . . . . . 4 . . . . . . . . . . . parse_system 4 | . . . . . 4 . . . . . . . . . . . Relay Couplers Released 65 | . . . . . . . . 21 . 14 . 8 . 22 . . Machine Destruction 65 | . . . . . . . . 21 . 14 . 8 . 22 . . Fabnet Peak Effective % . | . . . . . . . . . . . . . . . . . Robots Rewired . | . . . . . . . . . . . . . . . . . Allies Hacked . | . . . . . . . . . . . . . . . . . Hacks Repelled . | . . . . . . . . . . . . . . . . . Allies | -11 -10 -10 -9 -9 -9 -8 -8 -8 -8 -8 -7 -7 -7 -7 -7 -7 -------- Run | Jun Mat Min Mat Min Exi Min Mat Gar Mat Gar Fac Gar Fac Gar Fac Gar Total Allies 6 | . . . . 2 . . . . . 1 1 . 1 . 1 . Largest Group 2 | . . . . 2 . . . . . 1 1 1 1 1 2 1 Highest-Rated Group 41 | . . . . 41 . . . . . 31 31 24 10 10 36 10 Highest-Rated Ally 31 | . . . . 31 . . . . . 31 31 24 10 10 26 10 Total Orders 8 | . . . . . . . . . . . . . . 4 4 . STAY 4 | . . . . . . . . . . . . . . 2 2 . FOLLOW 4 | . . . . . . . . . . . . . . 2 2 . Ally Attacks 13 | . . . . 5 . . . . . . 8 . . . . . Total Damage 129 | . . . . 64 . . . . . . 65 . . . . . Kills 1 | . . . . 1 . . . . . . . . . . . . Allies Corrupted . | . . . . . . . . . . . . . . . . . Allies Melted . | . . . . . . . . . . . . . . . . . Intel | -11 -10 -10 -9 -9 -9 -8 -8 -8 -8 -8 -7 -7 -7 -7 -7 -7 ------- Run | Jun Mat Min Mat Min Exi Min Mat Gar Mat Gar Fac Gar Fac Gar Fac Gar Robot Analysis Total 3 | . 2 . . . . . . . . . 1 . . . . . Derelict Logs Recovered 2 | . . . . 2 . . . . . . . . . . . . Drone Launches . | . . . . . . . . . . . . . . . . . Drone Recoveries . | . . . . . . . . . . . . . . . . . Exploration | -11 -10 -10 -9 -9 -9 -8 -8 -8 -8 -8 -7 -7 -7 -7 -7 -7 ------------- Run | Jun Mat Min Mat Min Exi Min Mat Gar Mat Gar Fac Gar Fac Gar Fac Gar Turns Passed 13807 | 139 1743 577 2661 855 522 440 469 1515 891 844 440 421 923 379 728 260 Spaces Moved 10770 | 60 850 348 1228 450 330 208 168 789 441 421 897 590 1631 685 1268 406 Core 33 | 5 . . . . . 2 . . . . . . . . . 26 Treads 4267 | 55 850 348 1228 450 330 206 144 9 226 421 . . . . . . Legs . | . . . . . . . . . . . . . . . . . Wheels 1019 | . . . . . . . 24 780 215 . . . . . . . Hover . | . . . . . . . . . . . . . . . . . Flight 5451 | . . . . . . . . . . . 897 590 1631 685 1268 380 Fastest Speed 25 | 50 160 152 155 155 155 155 130 115 130 155 29 29 29 29 28 25 Average Speed 91 | 150 160 159 157 155 155 169 224 131 152 156 29 29 29 29 28 36 Slowest Speed 1000 | 160 160 160 160 155 155 1000 240 320 240 235 29 29 102 99 29 250 Overloaded Moves 7 | . . . . . . . . . . . . . . . . 7 Propulsion Burnouts . | . . . . . . . . . . . . . . . . . Robots Hopped 59 | . . . . . . . . . . . 16 . 15 . . 28 Cave-ins Triggered . | . . . . . . . . . . . . . . . . . Exploration Rate (%) 58 | 6 98 88 93 83 70 47 17 86 42 61 23 67 42 80 21 64 Regions Visited 16 Branch Regions 4 Pre-discovered Areas 5 | . 2 . 2 . 1 . . . . . . . . . . . Known Exits Taken 6 | . . . . . . 1 1 . 1 . 1 . 1 . 1 . Unknown Exits Taken 6 | 1 1 1 1 1 1 . . . . . . . . . . . Scrap Searched 5 | . . 1 . 3 . 1 . . . . . . . . . . Spaces Dug 236 | . 2 . 10 . . . 3 10 3 12 15 79 45 32 12 13 Terrain Destroyed 598 | . 5 36 24 . . 15 4 65 19 49 15 93 45 137 12 79 Melee 83 | . . . 2 . . . . . . 2 15 5 45 1 12 1 Projectile 18 | . 5 . . . . . 4 . 9 . . . . . . . AOE 497 | . . 36 22 . . 15 . 65 10 47 . 88 . 136 . 78 Terrain Rammed . | . . . . . . . . . . . . . . . . . Walls Destroyed . | . . . . . . . . . . . . . . . . . Machines Disabled . | . . . . . . . . . . . . . . . . . Actions | -11 -10 -10 -9 -9 -9 -8 -8 -8 -8 -8 -7 -7 -7 -7 -7 -7 --------- Run | Jun Mat Min Mat Min Exi Min Mat Gar Mat Gar Fac Gar Fac Gar Fac Gar Total 13617 | 84 1122 359 1704 601 338 260 238 1151 556 531 1039 801 1958 804 1600 471 Wait 1691 | . 151 . 211 142 . 22 33 243 10 33 97 123 211 59 295 61 Move 10658 | 59 849 347 1227 449 329 207 168 787 441 420 869 589 1602 684 1268 363 Hop 38 | . . . . . . . . . . . 12 . 14 . . 12 Pick Up 96 | 7 23 2 30 . 1 2 3 3 8 2 4 . 10 1 . . Fast Attach 64 | 5 2 . 7 . . 2 5 3 7 10 6 . 11 . 5 1 Attach 57 | 2 2 . 15 . . 2 2 . 4 . 8 6 3 4 1 8 Detach 18 | . . . . . . . . . . . . 6 3 4 1 4 Swap 118 | . 21 3 31 4 2 3 4 16 6 10 1 . 3 8 2 4 Drop 145 | . 18 2 40 1 1 1 5 6 15 11 22 . 13 1 5 4 Fire 419 | 11 47 4 125 2 . 19 18 62 65 36 . 7 . 13 . 10 Melee 189 | . . . 2 . 5 . . 10 . 3 20 22 70 30 23 4 Ram . | . . . . . . . . . . . . . . . . . Kick . | . . . . . . . . . . . . . . . . . Crush 37 | . 9 1 16 3 . 2 . . . 6 . . . . . . Escape Stasis 87 | . . . . . . . . 21 . . . 48 18 . . . Rewire . | . . . . . . . . . . . . . . . . . Trap . | . . . . . . . . . . . . . . . . . Miscellaneous . | . . . . . . . . . . . . . . . . . Route ------- -11/Junkyard -10/Materials (discovered 5 exits: *Mat x3 / *Min x2) -10/Mines (discovered 2 exits: *Mat x2) -9/Materials (discovered 5 exits: *Mat x3 / [*Min x2]) -9/Mines (discovered 3 exits: *Mat x2 / *Exi) -9/Exiles -8/Mines -8/Materials (discovered 4 exits: Fac x2 / Sto / Gar) -8/Garrison (discovered 3 exits: *Mat x3) -8/Materials (discovered 2 exits: *Fac / Gar) -8/Garrison (discovered 3 exits: *Fac x3) -7/Factory (discovered 3 exits: [*Fac x2] / Gar) -7/Garrison (discovered 2 exits: *Fac x2) -7/Factory (discovered 5 exits: [*Fac x2] / *Low x2 / Gar) -7/Garrison (discovered 3 exits: *Fac x3) -7/Factory (discovered 4 exits: [*Fac] / *Low x2 / Gar) -7/Garrison (discovered 3 exits: [*Fac x3]) History --------- Turn | Location | Event 5 | -11/Junkyard | Discovered new exit (range 14) 140 | -11/Junkyard | Entered Materials 312 | -10/Materials | Build established: Mutant 470 | -10/Materials | Discovered new exit (range 12) 879 | -10/Materials | Discovered new exit (range 7) 1043 | -10/Materials | Discovered new exit (range 12) 1361 | -10/Materials | Discovered new exit (range 14) 1465 | -10/Materials | Discovered new exit (range 10) 1883 | -10/Materials | Entered Mines 1892 | -10/Mines | Met a Derelict bent on vengeance 1986 | -10/Mines | A weapon hastily lodged in a ceiling crevice suddenly fell to the ground 2107 | -10/Mines | Discovered new exit (range 9) 2289 | -10/Mines | Discovered new exit (range 10) 2303 | -10/Mines | Met a Derelict who couldn't figure out how to use a Trap Extractor 2460 | -10/Mines | Entered Materials 2460 | -9/Materials | Evolved 2 slots: Propulsion x1, Utility x1 2838 | -9/Materials | Destroyed 7 combat bots 2982 | -9/Materials | Repaired Lgt. Armor Plating 3073 | -9/Materials | Discovered new exit (range 14) 3162 | -9/Materials | Build established: Scavenger-Mutant 3461 | -9/Materials | Discovered new exit (range 7) 3822 | -9/Materials | Discovered new exit (range 10) 3908 | -9/Materials | Repaired Hrd. Light Armor Plating 4270 | -9/Materials | Discovered new exit (range 13) 4463 | -9/Materials | Build established: Mutant 4738 | -9/Materials | Discovered new exit (range 15) 4860 | -9/Materials | First assault squad dispatched 5121 | -9/Materials | Entered Mines 5151 | -9/Mines | Identified exit to Materials 5337 | -9/Mines | Found a hidden stash of uninstalled traps 5412 | -9/Mines | Assembled infested the area 5417 | -9/Mines | Assisted by a Guerilla fighting off Assembled 5913 | -9/Mines | Learned 8 Materials zone layouts 5954 | -9/Mines | Discovered exit to Materials (range 14) 5968 | -9/Mines | Deemed a non-threat by the Exiles lab entrance 5970 | -9/Mines | Discovered new exit (range 5) 5976 | -9/Mines | Entered Exiles 6018 | -9/Exiles | Met 8R-AWN 6046 | -9/Exiles | Met EX-HEX 6130 | -9/Exiles | Met EX-DEC 6178 | -9/Exiles | Learned location of Zion (-6) 6275 | -9/Exiles | Met EX-BIN 6300 | -9/Exiles | Aligned with FarCom system 6302 | -9/Exiles | Given EX-Vault access code 6340 | -9/Exiles | Opened EX-Vault 6353 | -9/Exiles | Found Trap Reconfigurator 6388 | -9/Exiles | Warned to stay clear of 0b10 Research branches 6486 | -9/Exiles | Discovered new exit (range 10) 6498 | -9/Exiles | Left Exiles lab with Trap Reconfigurator 6498 | -9/Exiles | Entered Mines 6908 | -8/Mines | Lost 5 parts (3n2w) 6933 | -8/Mines | Discovered exit to Materials (range 3) 6938 | -8/Mines | Entered Materials 6938 | -8/Materials | Evolved 2 slots: Propulsion x1, Utility x1 6939 | -8/Materials | Identified exit to Factory 6939 | -8/Materials | Identified exit to Storage 7407 | -8/Materials | Identified exit to Garrison 7407 | -8/Materials | Entered Garrison 7452 | -8/Garrison | Triggered checkpoint 7504 | -8/Garrison | Garrison Relay disabled 7797 | -8/Garrison | Build established: Scavenger-Mutant 7939 | -8/Garrison | Triggered checkpoint 7975 | -8/Garrison | Destroyed 7 combat bots 8020 | -8/Garrison | Triggered checkpoint 8082 | -8/Garrison | Garrison Relay disabled 8108 | -8/Garrison | Discovered new exit (range 15) 8130 | -8/Garrison | Garrison Relay disabled 8206 | -8/Garrison | Triggered checkpoint 8336 | -8/Garrison | Build established: Mutant 8383 | -8/Garrison | Discovered new exit (range 13) 8427 | -8/Garrison | Triggered checkpoint 8455 | -8/Garrison | Garrison Relay disabled 8616 | -8/Garrison | Discovered new exit (range 8) 8694 | -8/Garrison | Spotted B-75 Beast 8694 | -8/Garrison | Attempted to access garrison exit controls, blocked by remote lockdown 8754 | -8/Garrison | Triggered checkpoint 8778 | -8/Garrison | Garrison Relay disabled 8922 | -8/Garrison | Entered Materials 9616 | -8/Materials | Discovered exit to Factory (range 9) 9813 | -8/Materials | Identified exit to Garrison 9813 | -8/Materials | Entered Garrison 9842 | -8/Garrison | Discovered exit to Factory (range 40) 9842 | -8/Garrison | Discovered exit to Factory (range 61) 9842 | -8/Garrison | Discovered exit to Factory (range 51) 9880 | -8/Garrison | Core integrity fell below 50% 10147 | -8/Garrison | Triggered checkpoint 10166 | -8/Garrison | Triggered checkpoint 10259 | -8/Garrison | Garrison Relay disabled 10385 | -8/Garrison | Garrison Relay disabled 10422 | -8/Garrison | Garrison Relay disabled 10468 | -8/Garrison | Build established: Scavenger-Mutant 10474 | -8/Garrison | Triggered checkpoint 10536 | -8/Garrison | Triggered checkpoint 10579 | -8/Garrison | Garrison Relay disabled 10628 | -8/Garrison | Rescued a captive Derelict 10657 | -8/Garrison | Entered Factory 10657 | -7/Factory | Accompanied by 1 ally 10657 | -7/Factory | Evolved 2 slots: Utility x2 10856 | -7/Factory | Discovered new exit (range 6) 10987 | -7/Factory | Build established: Hacker-Sprinter 11002 | -7/Factory | Discovered new exit (range 6) 11097 | -7/Factory | Identified exit to Garrison 11097 | -7/Factory | Entered Garrison 11097 | -7/Garrison | Accompanied by 1 ally 11152 | -7/Garrison | Triggered checkpoint 11154 | -7/Garrison | Triggered checkpoint 11158 | -7/Garrison | Triggered checkpoint 11168 | -7/Garrison | Garrison Relay disabled 11267 | -7/Garrison | Discovered new exit (range 11) 11361 | -7/Garrison | Garrison Relay disabled 11494 | -7/Garrison | Rescued a captive Derelict 11494 | -7/Garrison | Rescued a captive Derelict 11513 | -7/Garrison | Triggered checkpoint 11516 | -7/Garrison | Discovered new exit (range 8) 11518 | -7/Garrison | Entered Factory 11808 | -7/Factory | Discovered new exit (range 8) 11840 | -7/Factory | Discovered new exit (range 5) 11902 | -7/Factory | Discovered new exit (range 14) 11984 | -7/Factory | Fabricated Cld. VTOL Module (x1) 12053 | -7/Factory | Discovered new exit (range 7) 12099 | -7/Factory | Repaired Lgt. Deuterium Engine 12138 | -7/Factory | Repaired Imp. Utility Shielding 12437 | -7/Factory | Identified exit to Garrison 12441 | -7/Factory | Entered Garrison 12441 | -7/Garrison | Accompanied by 1 ally 12515 | -7/Garrison | Garrison Relay disabled 12587 | -7/Garrison | Heavy support dispatched to Factory 12599 | -7/Garrison | Discovered new exit (range 10) 12662 | -7/Garrison | Triggered checkpoint 12693 | -7/Garrison | Garrison Relay disabled 12701 | -7/Garrison | Garrison Relay disabled 12710 | -7/Garrison | Discovered new exit (range 8) 12743 | -7/Garrison | Discovered new exit (range 39) 12743 | -7/Garrison | Discovered new exit (range 37) 12743 | -7/Garrison | Discovered new exit (range 25) 12763 | -7/Garrison | Phase Generator disabled 12808 | -7/Garrison | Garrison Relay disabled 12820 | -7/Garrison | Entered Factory 12820 | -7/Factory | Accompanied by 1 ally 13139 | -7/Factory | Found Prototype Launcher 13139 | -7/Factory | Identified Rocket Array 13329 | -7/Factory | Discovered new exit (range 13) 13334 | -7/Factory | Identified exit to Lower Caves 13351 | -7/Factory | Discovered new exit (range 4) 13548 | -7/Factory | Identified exit to Garrison 13548 | -7/Factory | Entered Garrison 13548 | -7/Garrison | Accompanied by 1 ally 13653 | -7/Garrison | Discovered new exit (range 7) 13654 | -7/Garrison | Attempted to access garrison exit controls, blocked by remote lockdown 13685 | -7/Garrison | Discovered new exit (range 26) 13685 | -7/Garrison | Discovered new exit (range 40) 13685 | -7/Garrison | Discovered new exit (range 49) 13691 | -7/Garrison | Core integrity fell below 50% 13719 | -7/Garrison | Lost 5 parts (1p2n1u1w) 13738 | -7/Garrison | Attempted to access garrison exit controls, blocked by remote lockdown 13762 | -7/Garrison | Triggered checkpoint 13790 | -7/Garrison | Core integrity fell below 20% 13808 | -7/Garrison | Triggered checkpoint 13808 | -7/Garrison | Destroyed by S-27 Virus with Autogun Last Messages --------------- 13758_ Dropped Med. Storage Unit. 13759_ Acquired Gravity Neutralizer. 13759_ C-30 ARC bursts open, deploying its payload. 13759_ L-41 Fighter unfolds itself. 13759_ G-47 Trooper unfolds itself. 13768_ Cld. VTOL Module destroyed. 13768_ Acquired 5 matter. 13769_ Acquired 9 matter. 13771_ Hacking Suite destroyed. 13777_ S-27 Virus destroyed. 13780_ Hacking Suite destroyed. 13781_ Imp. VTOL Module destroyed. 13781_ Destroyed VTOL Module. 13781_ S-27 Virus destroyed. 13782_ Prc. Grenade Launcher destroyed. 13785_ The unstable cave ceiling collapses. 13789_ Gravity Neutralizer destroyed. 13798_ The unstable cave ceiling collapses. 13802_ Hacking Suite destroyed. 13808_ Beams of light sweep through the air. An alarm sounds. Map ----- +----------------------------------------------------+ | ??????????????????# + " #????????? | | ??????????????????# #### " #????????? | | [%* ??????????????????# #??### #????????? | | ######## = ??????????????????# #????# #????????? | | ????????#=[ #??????????????????# #????# #????????? | | ????????# #??????????????????# #????# #####????? | | ????????# #??????????????????# #????# #####? | | ????????# #??????????????????# #????#+### ## ## | | ????????# #??????????????????# #????# #?# # # | | ????????# #??????????????????# #????# #?# # # | | ????????# #??????????????????# #????# #?# ## ## | | ????????# ############??????##+######+### ### ## | | ????????# / #??????# | | ???????## /gg #??????#^ | | ???????# ## ##### #??????#^^######+## ###### | | ???????# #???# #??????#^^###### ## #????? | | ??????### # #???# #??????#^ + ## #????? | | ??????# g#???# #??????# ##### ### #????? | | ??????# # #g#???# ######## #???# #?# #????? | | ??????## % g#???# ##ssss## #???# #?# #????? | | ???????# [^g +#####++## ## ##??# #?# #????? | | ???????## == l gg ####+### #????? | | ????????# g #????? | | ????????# g s #????? | | ????????##T####+#### ## ## ###########????? | | ?????????###??# #### s ##@ ## ###????????????? | | ??????????????# + g #????????????? | | ??????????????#### g #????????????? | | ?????????????????#" C g #????????????? | | ?????????????????#% #????????????? | | ?????????????????### ## ## ###????????????? | | ########?########### ## ## #??????????????? | | """""""#?# #####??????????? | | !!!!!!"#?# + #??????????? | | #?# ######## ### #??????????? | | #?# #??????##+### ## #?# ############ | | ### #???????# #?#C%CC## ! #?# | | + #???????# #?####### % #?# ############ | | ######### #???????# #?# #??????????? | | ### #???????#^^^#?# #??????????? | | !!!!!!"## ##########???????# ### #??????????? | | """""""## #???????????????# ##"+############ | | ######### #???????????????# ^ | | ????????# #???????????????# ^^ | | ######### ###???????????????# ^^ | | # ####??????????????#######++########### | | # + #????????????????????# #?????????? | | # < ##### #### #????????????????????# #?????????? | | # #???# #??# #????????????????????#++########### | | #####???# #??# #???#######??????????# | +----------------------------------------------------+ Best States ------------- Heat Dissipation 61 Coolant Potential 65 Energy Generation 14 Energy Capacity 400 Matter Stores 300 Matter Capacity 300 Sight Range 16 Terrain Scan Density 10 ECM Strength 2 Additional Mass Support 12 Armor Coverage 300 Resistance: KI 25 Utility Shielding 66 Evasion (%) 64 Targeting Accuracy 8 Melee Accuracy 6 Recoil Reduction 4 Salvage Targeting 3 Offensive Hacking 40 Authchip Count 2 Trap Extractor Capacity 8 Item Schematics ----------------- Hacking Suite | -9/Materials | Scanalyzed Imp. Utility Shielding | -8/Materials | Scanalyzed Adv. Trap Extractor | -7/Factory | Scanalyzed Cld. VTOL Module | -7/Factory | Scanalyzed Imp. Hacking Suite | -7/Factory | Hacked Cld. Plasma Cannon | -7/Factory | Hacked Robot Schematics ------------------ M-13 Machinist | -10/Materials | Hacked Fabricated ------------ Cld. VTOL Module | x1 | -7/Factory | Preloaded Alien Tech Used ----------------- None Achievements -------------- None Challenges ------------ None Game ------ Seed NetworkReactiveSteel Manual? 0 Play Time 01:48:26 Cumulative 750.9 hours Start 2024.01.10 @ 17:08:08 End 2024.01.10 @ 19:21:13 Sessions 3 Manual Loads 0 Difficulty Rogue Special Mode None Game No. 675 Rogue 675 Adventurer 0 Explorer 0 Win Type - Total 37 Types 14/3/10/2/0/0/5/2/1 Lore% 97 Gallery% 96 Achievement% 84 Wizard Run 0 Options --------- ASCII 0 Keyboard 0 Movement Numpad Keybinds 0 Fullscreen 1 Font 18/Smallcaps Map View 76x50 Tactical HUD 1 Map Filters NONE Filters NONE Steam 1 RUN: 199e0f74-74df-48ab-84f2-b31f5e0fb6c3